fUST/lending_fUST_20241127
["ID","MTS","AMOUNT","RATE_DAILY","PERIOD"]
[343512463,1732703445934,-500.0,0.00027397,3]
[343512464,1732703445944,-500.0,0.00027397,3]
[343512465,1732703445953,-500.0,0.00027397,3]
[343512466,1732703445962,-500.0,0.00027397,3]
[343512467,1732703445971,-500.0,0.00027397,3]
[343512468,1732703445980,-742.14,0.00027397,3]
[343512469,1732703445989,-742.14,0.00027397,3]
[343512470,1732703445999,-742.14,0.00027397,3]
[343512471,1732703446008,-742.14,0.00027397,3]
[343512472,1732703446018,-825.61,0.00027397,3]
[343512473,1732703446028,-500.0,0.00027397,3]
[343512474,1732703446037,-742.14,0.00027397,3]
[343512475,1732703446047,-825.61,0.00027397,3]
[343512477,1732703446056,-500.0,0.00027397,3]
[343512478,1732703446065,-742.14,0.00027397,3]
[343512479,1732703446075,-825.61,0.00027397,3]
[343512481,1732703446084,-500.0,0.00027397,3]
[343512482,1732703446093,-742.14,0.00027397,3]
[343512483,1732703446102,-825.61,0.00027397,3]
[343512485,1732703446111,-500.0,0.00027397,3]
[343512486,1732703446121,-742.14,0.00027397,3]
[343512488,1732703446131,-500.0,0.00027397,3]
[343512489,1732703446140,-825.61,0.00027397,3]
[343512490,1732703446149,-742.14,0.00027397,3]
[343512491,1732703446158,-825.61,0.00027397,3]
[343512492,1732703446168,-500.0,0.00027397,3]
[343512493,1732703446177,-742.14,0.00027397,3]
[343512494,1732703446187,-825.61,0.00027397,3]
[343512495,1732703446197,-825.61,0.00027397,3]
[343512497,1732703446281,-742.14,0.00027397,3]
[343512498,1732703446291,-500.0,0.00027397,3]
[343512499,1732703446301,-825.61,0.00027397,3]
[343512500,1732703446310,-825.61,0.00027397,3]
[343512501,1732703446319,-825.61,0.00027397,3]
[343512502,1732703446329,-825.61,0.00027397,3]
[343512503,1732703446338,-500.0,0.00027397,3]
[343512504,1732703446347,-825.61,0.00027397,3]
[343512505,1732703446356,-825.61,0.00027397,3]
[343512506,1732703446365,-500.0,0.00027397,3]
[343512507,1732703446377,-500.0,0.00027397,3]
[343512508,1732703446394,-825.61,0.00027397,3]
[343512509,1732703446406,-500.0,0.00027397,3]
[343512510,1732703446416,-825.61,0.00027397,3]
[343512511,1732703446425,-500.0,0.00027397,3]
[343512512,1732703446434,-825.61,0.00027397,3]
[343512513,1732703446445,-825.61,0.00027397,3]
[343512514,1732703446455,-825.61,0.00027397,3]
[343512515,1732703446464,-500.0,0.00027397,3]
[343512516,1732703446474,-825.61,0.00027397,3]
[343512517,1732703446483,-500.0,0.00027397,3]
[343512518,1732703446493,-825.61,0.00027397,3]
[343512519,1732703446502,-500.0,0.00027397,3]
[343512520,1732703446511,-500.0,0.00027397,3]
[343512521,1732703446520,-825.61,0.00027397,3]
[343512522,1732703446529,-825.61,0.00027397,3]
[343512523,1732703446539,-500.0,0.00027397,3]
[343512524,1732703446548,-825.62,0.00027397,3]
[343512525,1732703446557,-500.0,0.00027397,3]
[343512526,1732703446566,-500.0,0.00027397,3]
[343512527,1732703446575,-500.0,0.00027397,3]
[343512528,1732703446584,-500.0,0.00027397,3]
[343512529,1732703446593,-500.0,0.00027397,3]
[343512530,1732703446603,-500.0,0.00027397,3]
[343512531,1732703446612,-500.0,0.00027397,3]
[343512532,1732703446621,-500.0,0.00027397,3]
[343512533,1732703446630,-500.0,0.00027397,3]
[343512534,1732703446639,-500.0,0.00027397,3]
[343512535,1732703446649,-500.0,0.00027397,3]
[343512536,1732703446658,-500.0,0.00027397,3]
[343512537,1732703446667,-500.0,0.00027397,3]
[343512538,1732703446676,-500.0,0.00027397,3]
[343512539,1732703446687,-500.0,0.00027397,3]
[343512540,1732703446696,-500.0,0.00027397,3]
[343512541,1732703446706,-500.0,0.00027397,3]
[343512542,1732703446714,-500.0,0.00027397,3]
[343512543,1732703446723,-500.0,0.00027397,3]
[343512544,1732703446732,-500.0,0.00027397,3]
[343512545,1732703446741,-500.0,0.00027397,3]
[343512546,1732703446750,-500.0,0.00027397,3]
[343512547,1732703446759,-518.59238116,0.00027397,3]
[343512548,1732703446768,-500.0,0.00027397,3]
[343512549,1732703446777,-527.13878585,0.00027397,3]
[343512550,1732703446786,-500.0,0.00027397,3]
[343512551,1732703446795,-500.0,0.00027397,3]
[343512552,1732703446804,-500.0,0.00027397,3]
[343512553,1732703446814,-500.0,0.00027397,3]
[343512554,1732703446823,-500.0,0.00027397,3]
[343512555,1732703446832,-500.0,0.00027397,3]
[343512556,1732703446841,-500.0,0.00027397,3]
[343512557,1732703446850,-500.0,0.00027397,3]
[343512558,1732703446859,-500.0,0.00027397,3]
[343512559,1732703446868,-500.0,0.00027397,3]
[343512560,1732703446878,-500.0,0.00027397,3]
[343512561,1732703446888,-427.79410164,0.00027397,3]
[343512562,1732703446897,-500.0,0.00027397,3]
[343512563,1732703446907,-500.0,0.00027397,3]
[343512564,1732703446916,-500.0,0.00027397,3]
[343512565,1732703446925,-500.0,0.00027397,3]
[343512566,1732703446935,-500.0,0.00027397,3]
[343512567,1732703446944,-500.0,0.00027397,3]
[343512568,1732703446953,-500.0,0.00027397,3]
[343512569,1732703446962,-284.5,0.00027397,3]
[343512570,1732703446971,-500.0,0.00027397,3]
[343512571,1732703446984,-459.73076568,0.00027397,3]
[343512572,1732703446994,-500.0,0.00027397,3]
[343512573,1732703447003,-500.0,0.00027397,3]
[343512574,1732703447013,-252.999968,0.00027397,7]
[343512575,1732703447023,-500.0,0.00027397,3]
[343512576,1732703447035,-500.0,0.00027397,3]
[343512577,1732703447044,-500.0,0.00027397,3]
[343512578,1732703447056,-500.0,0.00027397,3]
[343512579,1732703447065,-500.0,0.00027397,3]
[343512580,1732703447074,-500.0,0.00027397,3]
[343512581,1732703447083,-500.0,0.00027397,3]
[343512582,1732703447093,-500.0,0.00027397,3]
[343512583,1732703447102,-500.0,0.00027397,3]
[343512584,1732703447111,-500.0,0.00027397,3]
[343512585,1732703447121,-500.0,0.00027397,3]
[343512586,1732703447131,-500.0,0.00027397,3]
[343512587,1732703447140,-500.0,0.00027397,3]
[343512588,1732703447150,-500.0,0.00027397,3]
[343512589,1732703447159,-500.0,0.00027397,3]
[343512590,1732703447168,-500.0,0.00027397,3]
[343512591,1732703447178,-500.0,0.00027397,3]
[343512592,1732703447187,-500.0,0.00027397,3]
[343512593,1732703447197,-500.0,0.00027397,3]
[343512594,1732703447207,-500.0,0.00027397,3]
[343512595,1732703447216,-500.0,0.00027397,3]
[343512596,1732703447226,-500.0,0.00027397,3]
[343512597,1732703447236,-500.93051555,0.00027397,3]
[343512598,1732703447246,-458.92103715,0.00027397,3]
[343512599,1732703447255,-500.0,0.00027397,3]
[343512600,1732703447265,-500.0,0.00027397,3]
[343512601,1732703447274,-500.0,0.00027397,3]
[343512602,1732703447284,-500.0,0.00027397,3]
[343512603,1732703447293,-501.10161618,0.00027397,3]
[343512604,1732703447302,-252.999968,0.00027397,7]
[343512605,1732703447311,-500.0,0.00027397,3]
[343512606,1732703447321,-536.93047173,0.00027397,3]
[343512607,1732703447331,-500.0,0.00027397,3]
[343512608,1732703447340,-500.0,0.00027397,3]
[343512609,1732703447349,-500.0,0.00027397,3]
[343512610,1732703447359,-500.0,0.00027397,3]
[343512611,1732703447369,-500.0,0.00027397,3]
[343512612,1732703447378,-500.0,0.00027397,3]
[343512613,1732703447394,-500.0,0.00027397,3]
[343512614,1732703447403,-500.0,0.00027397,3]
[343512615,1732703447413,-500.0,0.00027397,3]
[343512616,1732703447423,-500.0,0.00027397,3]
[343512617,1732703447433,-500.0,0.00027397,3]
[343512618,1732703447442,-500.0,0.00027397,3]
[343512619,1732703447451,-500.0,0.00027397,3]
[343512620,1732703447461,-613.02,0.00027397,3]
[343512621,1732703447470,-613.02,0.00027397,3]
[343512622,1732703447480,-613.02,0.00027397,3]
[343512623,1732703447489,-613.02,0.00027397,3]
[343512624,1732703447499,-613.02,0.00027397,3]
[343512625,1732703447509,-500.0,0.00027397,3]
[343512626,1732703447519,-613.02,0.00027397,3]
[343512627,1732703447529,-613.02,0.00027397,3]
[343512628,1732703447538,-613.02,0.00027397,3]
[343512629,1732703447547,-613.02,0.00027397,3]
[343512630,1732703447557,-613.02,0.00027397,3]
[343512631,1732703447566,-613.02,0.00027397,3]
[343512632,1732703447576,-613.02,0.00027397,3]
[343512633,1732703447586,-500.0,0.00027397,3]
[343512634,1732703447595,-613.02,0.00027397,3]
[343512635,1732703447605,-613.02,0.00027397,3]
[343512636,1732703447614,-500.0,0.00027397,3]
[343512637,1732703447623,-502.2688572,0.00027397,3]
[343512638,1732703447633,-613.02,0.00027397,3]
[343512639,1732703447642,-500.0,0.00027397,3]
[343512640,1732703447652,-613.02,0.00027397,3]
[343512641,1732703447661,-500.0,0.00027397,3]
[343512642,1732703447670,-500.0,0.00027397,3]
[343512643,1732703447680,-500.0,0.00027397,3]
[343512644,1732703447691,-500.0,0.00027397,3]
[343512645,1732703447700,-613.02,0.00027397,3]
[343512646,1732703447709,-329.28366679,0.00027397,3]
[343512647,1732703447719,-613.02,0.00027397,3]
[343512648,1732703447729,-151.0,0.00027397,7]
[343512649,1732703447738,-613.02,0.00027397,3]
[343512650,1732703447747,-613.02,0.00027397,3]
[343512651,1732703447757,-613.02,0.00027397,3]
[343512652,1732703447766,-613.02,0.00027397,3]
[343512653,1732703447775,-613.02,0.00027397,3]
[343512654,1732703447785,-613.07,0.00027397,3]
[343512655,1732703447794,-4693.31343,0.00027522,2]
[343512656,1732703447803,-158.772964,0.00027641,2]
[343512657,1732703447815,-769.04882511,0.00027714,2]
[343512658,1732703447824,-783.29,0.00027811,2]
[343512659,1732703447835,-644.63,0.0002792,3]
[343512660,1732703447845,-500.0,0.0002792,3]
[343512661,1732703447855,-1002.57895296,0.00027921,5]
[343512662,1732703447865,-500.0,0.00027921,5]
[343512663,1732703447875,-500.89544524,0.00027921,5]
[343512664,1732703447884,-500.0,0.00027921,5]
[343512665,1732703447893,-500.0,0.00027921,5]
[343512666,1732703447903,-256.23376913,0.00027921,5]
[343512667,1732703447912,-19058.70437186,0.00028,2]
[343512668,1732703448094,-995.59912702,0.00028,2]
[343512669,1732703448106,-6041.43744247,0.00028,2]
[343512670,1732703448118,-9131.22962783,0.00028,2]
[343512671,1732703448127,-38313.50171937,0.00028,30]
[343512672,1732703448139,-3077.03436802,0.00028,30]
[343512673,1732703448268,-734.51920441,0.00025957,2]
[343512674,1732703448278,-151.0,0.00027397,7]
[343512675,1732703448287,-500.0,0.00027397,3]
[343512676,1732703448297,-52524.92570414,0.00028,30]
[343512677,1732703448312,-1917.04822429,0.00028,30]
[343512678,1732703448324,-5724.5273585,0.00028,30]
[343512679,1732703448335,-2993.4717744,0.00028,30]
[343512680,1732703448357,-629.3886383,0.00028,30]
[343512681,1732703448369,-172313.65930427,0.00028,30]
[343512682,1732703448378,-769.04882511,0.00028132,2]
[343512683,1732703448391,-4875.89016875,0.00028173,2]
[343512684,1732703448401,-587.0,0.00028223,2]
[343512685,1732703448410,-769.04882511,0.00028549,2]
[343512686,1732703448420,-336.24399372,0.0002857,2]
[343512687,1732703448431,-769.04882511,0.00028966,2]
[343512688,1732703448441,-861.73877263,0.00029,2]
[343512689,1732703448450,-587.0,0.00029038,2]
[343512690,1732703448460,-4875.89016875,0.00029048,2]
[343512691,1732703448470,-769.04882511,0.00029384,2]
[343512692,1732703448480,-336.393897,0.00029482,7]
[343512693,1732703448489,-336.393897,0.00029482,7]
[343512694,1732703448498,-362.328429,0.00029482,7]
[343512695,1732703448507,-362.328429,0.00029482,7]
[343512696,1732703448517,-252.999968,0.00029482,7]
[343512697,1732703448527,-252.999968,0.00029482,7]
[343512698,1732703448536,-151.0,0.00029482,7]
[343512699,1732703448545,-151.0,0.00029482,7]
[343512700,1732703448555,-151.0,0.00029483,7]
[343512701,1732703448564,-151.281181,0.00029483,7]
[343512702,1732703448573,-151.0,0.00029483,7]
[343512703,1732703448582,-151.0,0.00029483,7]
[343512704,1732703448592,-9430.6744199,0.00029574,2]
[343512705,1732703448602,-277.94,0.00029603,3]
[343512706,1732703448611,-777.12,0.00029603,3]
[343512707,1732703448620,-768.66,0.00029603,3]
[343512708,1732703448629,-647.65,0.00029603,3]
[343512709,1732703448639,-500.0,0.00029603,3]
[343512710,1732703448648,-537.15,0.00029603,3]
[343512711,1732703448657,-644.63,0.00029603,3]
[343512712,1732703448666,-742.14,0.00029603,3]
[343512713,1732703448675,-500.0,0.00029603,3]
[343512714,1732703448685,-500.0,0.00029603,3]
[343512715,1732703448694,-500.0,0.00029603,3]
[343512716,1732703448703,-500.0,0.00029604,3]
[343512717,1732703448712,-500.0,0.00029604,3]
[343512718,1732703448722,-500.0,0.00029604,3]
[343512719,1732703448731,-500.0,0.00029604,3]
[343512720,1732703448741,-500.0,0.00029604,3]
[343512721,1732703448750,-500.0,0.00029604,3]
[343512722,1732703448759,-500.0,0.00029604,3]
[343512723,1732703448768,-500.0,0.00029604,3]
[343512724,1732703448778,-192.47583784,0.00029604,3]
[343512725,1732703448789,-500.0,0.00029604,3]
[343512726,1732703448798,-500.0,0.00029604,3]
[343512727,1732703448808,-517.12165203,0.00029604,3]
[343512728,1732703448819,-500.0,0.00029604,3]
[343512729,1732703448828,-500.0,0.00029604,3]
[343512730,1732703448837,-500.0,0.00029604,3]
[343512731,1732703448846,-500.0,0.00029604,3]
[343512732,1732703448856,-672.79,0.00029604,3]
[343512733,1732703448865,-1527.62,0.00029604,3]
[343512734,1732703448876,-500.0,0.00029604,3]
[343512735,1732703448885,-500.0,0.00029604,3]
[343512736,1732703448895,-500.0,0.00029604,3]
[343512737,1732703448904,-500.0,0.00029604,3]
[343512738,1732703448913,-500.0,0.00029604,3]
[343512739,1732703448922,-500.0,0.00029604,3]
[343512740,1732703448931,-500.0,0.00029604,3]
[343512741,1732703448941,-814.29,0.00029604,3]
[343512742,1732703448950,-500.0,0.00029604,3]
[343512743,1732703448960,-500.0,0.00029604,3]
[343512744,1732703448969,-500.0,0.00029604,3]
[343512745,1732703448978,-500.0,0.00029604,3]
[343512746,1732703448988,-500.0,0.00029604,3]
[343512747,1732703448997,-500.0,0.00029604,3]
[343512748,1732703449006,-500.0,0.00029604,3]
[343512749,1732703449016,-500.0,0.00029604,3]
[343512750,1732703449025,-174.05575716,0.00029604,3]
[343512751,1732703449034,-500.0,0.00029604,3]
[343512752,1732703449044,-155.372531,0.00029604,7]
[343512753,1732703449053,-155.372531,0.00029604,7]
[343512754,1732703449062,-500.0,0.00029604,3]
[343512755,1732703449072,-560.37813416,0.00029604,3]
[343512756,1732703449081,-500.0,0.00029604,3]
[343512757,1732703449090,-500.0,0.00029604,3]
[343512758,1732703449099,-500.0,0.00029604,3]
[343512759,1732703449109,-500.0,0.00029604,3]
[343512760,1732703449119,-500.0,0.00029604,3]
[343512761,1732703449128,-500.0,0.00029604,3]
[343512762,1732703449138,-500.0,0.00029604,3]
[343512763,1732703449148,-160.0887615,0.00029633,3]
[343512764,1732703449158,-306.35873659,0.00029633,5]
[343512765,1732703449168,-9430.6744199,0.00029634,2]
[343512766,1732703449178,-153.29,0.000297,31]
[343512767,1732703449188,-153.29,0.000297,31]
[343512768,1732703449199,-153.29,0.000297,31]
[343512769,1732703449209,-153.29,0.000297,31]
[343512770,1732703449218,-153.29,0.000297,31]
[343512771,1732703449227,-153.29,0.000297,31]
[343512772,1732703449237,-153.29,0.000297,31]
[343512773,1732703449246,-183.78154735,0.000297,5]
[343512774,1732703449255,-769.04882511,0.00029801,2]
[343512775,1732703449265,-644.63,0.00029829,3]
[343512776,1732703449275,-500.0,0.00029829,3]
[343512777,1732703449284,-4875.89016875,0.00029924,2]
[343512778,1732703449295,-311.31219969,0.00029999,2]
[343512779,1732703449304,-242.0,0.0003,2]
[343512780,1732703449313,-299.184376,0.00030091,7]
[343512781,1732703449323,-299.184376,0.00030091,7]
[343512782,1732703449332,-9430.6744199,0.00030134,2]
[343512783,1732703449342,-850.636373,0.00030137,120]
[343512784,1732703449351,-769.04882511,0.00030218,2]
[343512785,1732703449360,-777.12,0.00030226,3]
[343512786,1732703449369,-768.66,0.00030226,3]
[343512787,1732703449381,-647.65,0.00030226,3]
[343512788,1732703449393,-500.0,0.00030226,3]
[343512789,1732703449402,-537.15,0.00030226,3]
[343512790,1732703449412,-742.14,0.00030226,3]
[343512791,1732703449421,-500.0,0.00030226,3]
[343512792,1732703449432,-500.0,0.00030226,3]
[343512793,1732703449445,-9430.6744199,0.00030251,2]
[343512794,1732703449454,-644.63,0.00030261,3]
[343512795,1732703449465,-561.75,0.00030261,3]
[343512796,1732703449474,-305.751845,0.00030361,7]
[343512797,1732703449558,-305.751845,0.00030361,7]
[343512798,1732703449570,-151.0,0.00030361,7]
[343512799,1732703449580,-644.63,0.00030361,3]
[343512800,1732703449589,-644.63,0.00030361,3]
[343512801,1732703449598,-644.63,0.00030361,3]
[343512802,1732703449608,-644.63,0.00030361,3]
[343512803,1732703449617,-644.63,0.00030361,3]
[343512804,1732703449627,-644.82415401,0.00030361,3]
[343512805,1732703449636,-222000.0,0.00030362,2]
[343512806,1732703449646,-151.0,0.00030362,7]
[343512807,1732703449655,-151.0,0.00030362,7]
[343512808,1732703449664,-305.751845,0.00030362,7]
[343512809,1732703449673,-305.751845,0.00030362,7]
[343512810,1732703449683,-151.0,0.00030362,7]
[343512811,1732703449691,-299.184376,0.00030362,7]
[343512812,1732703449701,-299.184376,0.00030362,7]
[343512813,1732703449710,-155.372531,0.00030362,7]
[343512814,1732703449719,-155.372531,0.00030362,7]
[343512815,1732703449728,-151.0,0.00030362,7]
[343512816,1732703449737,-336.393897,0.00030362,7]
[343512817,1732703449747,-336.393897,0.00030362,7]
[343512818,1732703449756,-336.393897,0.00030362,7]
[343512819,1732703449766,-336.393897,0.00030362,7]
[343512820,1732703449775,-362.328429,0.00030362,7]
[343512821,1732703449784,-362.328429,0.00030362,7]
[343512822,1732703449793,-362.328429,0.00030362,7]
[343512823,1732703449802,-362.328429,0.00030362,7]
[343512824,1732703449811,-252.999968,0.00030362,7]
[343512825,1732703449820,-252.999968,0.00030362,7]
[343512826,1732703449829,-252.999968,0.00030362,7]
[343512827,1732703449839,-252.999968,0.00030362,7]
[343512828,1732703449848,-151.0,0.00030362,7]
[343512829,1732703449857,-151.0,0.00030362,7]
[343512830,1732703449867,-151.0,0.00030362,7]
[343512831,1732703449876,-151.0,0.00030362,7]
[343512832,1732703449885,-500.0,0.00030363,3]
[343512833,1732703449895,-500.0,0.00030363,3]
[343512834,1732703449904,-500.0,0.00030363,3]
[343512835,1732703449914,-500.0,0.00030363,3]
[343512836,1732703449924,-500.0,0.00030363,3]
[343512837,1732703449933,-200.0,0.00030363,3]
[343512838,1732703449942,-500.0,0.00030363,3]
[343512839,1732703449952,-500.0,0.00030363,3]
[343512840,1732703449961,-500.0,0.00030363,3]
[343512841,1732703449970,-500.0,0.00030363,3]
[343512842,1732703449980,-500.0,0.00030363,3]
[343512843,1732703449989,-500.0,0.00030363,3]
[343512844,1732703449998,-500.0,0.00030363,3]
[343512845,1732703450008,-500.0,0.00030363,3]
[343512846,1732703450017,-500.0,0.00030363,3]
[343512847,1732703450026,-500.0,0.00030363,3]
[343512848,1732703450036,-777.12,0.00030363,3]
[343512849,1732703450045,-768.66,0.00030363,3]
[343512850,1732703450055,-500.0,0.00030363,3]
[343512851,1732703450065,-500.0,0.00030363,3]
[343512852,1732703450074,-632.83487539,0.00030363,3]
[343512853,1732703450083,-500.0,0.00030363,3]
[343512854,1732703450093,-647.65,0.00030363,3]
[343512855,1732703450102,-1330.18,0.00030363,3]
[343512856,1732703450111,-500.0,0.00030363,3]
[343512857,1732703450121,-500.0,0.00030363,3]
[343512858,1732703450130,-500.0,0.00030363,3]
[343512859,1732703450140,-1154.32,0.00030363,3]
[343512860,1732703450149,-537.15,0.00030363,3]
[343512861,1732703450158,-742.14,0.00030363,3]
[343512862,1732703450168,-500.0,0.00030363,3]
[343512863,1732703450178,-500.0,0.00030363,3]
[343512864,1732703450188,-500.0,0.00030363,3]
[343512865,1732703450198,-501.59390651,0.00030364,3]
[343512866,1732703450207,-500.0,0.00030364,3]
[343512867,1732703450216,-500.0,0.00030364,2]
[343512868,1732703450225,-500.0,0.00030364,3]
[343512869,1732703450234,-500.0,0.00030364,3]
[343512870,1732703450244,-509.79408223,0.00030364,3]
[343512871,1732703450253,-500.0,0.00030364,3]
[343512872,1732703450262,-500.0,0.00030364,3]
[343512873,1732703450276,-500.0,0.00030364,3]
[343512874,1732703450292,-500.0,0.00030364,3]
[343512875,1732703450308,-500.0,0.00030364,3]
[343512876,1732703450320,-500.0,0.00030364,3]
[343512877,1732703450334,-500.0,0.00030364,3]
[343512878,1732703450348,-500.0,0.00030364,3]
[343512879,1732703450362,-500.0,0.00030364,3]
[343512880,1732703450376,-672.79,0.00030364,3]
[343512881,1732703450394,-1527.62,0.00030364,3]
[343512882,1732703450408,-311.23139066,0.00030364,3]
[343512883,1732703450421,-500.0,0.00030364,3]
[343512884,1732703450436,-500.0,0.00030364,3]
[343512885,1732703450450,-500.0,0.00030364,3]
[343512886,1732703450465,-500.0,0.00030364,3]
[343512887,1732703450476,-500.0,0.00030364,3]
[343512888,1732703450489,-500.0,0.00030364,3]
[343512889,1732703450501,-814.29,0.00030364,3]
[343512890,1732703450515,-500.0,0.00030364,3]
[343512891,1732703450529,-500.0,0.00030364,3]
[343512892,1732703450543,-500.0,0.00030364,3]
[343512893,1732703450557,-500.0,0.00030364,3]
[343512894,1732703450573,-500.0,0.00030364,3]
[343512895,1732703450584,-500.0,0.00030364,3]
[343512896,1732703450595,-500.0,0.00030364,3]
[343512897,1732703450609,-500.0,0.00030364,3]
[343512898,1732703450624,-500.0,0.00030364,3]
[343512899,1732703450636,-500.0,0.00030364,3]
[343512900,1732703450648,-500.0,0.00030364,3]
[343512901,1732703450661,-500.0,0.00030364,3]
[343512902,1732703450674,-500.0,0.00030364,3]
[343512903,1732703450685,-500.0,0.00030364,3]
[343512904,1732703450697,-500.0,0.00030364,3]
[343512905,1732703450710,-500.0,0.00030364,3]
[343512906,1732703450722,-500.0,0.00030461,3]
[343512907,1732703450735,-500.0,0.00030461,3]
[343512908,1732703450747,-500.0,0.00030461,3]
[343512909,1732703450760,-500.0,0.00030461,3]
[343512910,1732703450772,-500.0,0.00030461,3]
[343512911,1732703450783,-500.0,0.00030461,3]
[343512912,1732703450794,-500.0,0.00030461,3]
[343512913,1732703450805,-500.0,0.00030461,3]
[343512914,1732703450817,-500.0,0.00030461,3]
[343512915,1732703450829,-500.0,0.00030461,3]
[343512916,1732703450841,-285.10238791,0.00030461,3]
[343512917,1732703450853,-168.8203895,0.00030461,3]
[343512918,1732703450865,-500.0,0.00030461,3]
[343512919,1732703450877,-500.0,0.00030461,3]
[343512920,1732703450889,-500.0,0.00030461,3]
[343512921,1732703450900,-506.79581895,0.00030461,3]
[343512922,1732703450911,-500.0,0.00030461,3]
[343512923,1732703450924,-500.0,0.00030461,3]
[343512924,1732703450936,-500.0,0.00030461,3]
[343512925,1732703450945,-299.01,0.00030461,3]
[343512926,1732703450954,-500.0,0.00030461,3]
[343512927,1732703450963,-160.9,0.00030461,3]
[343512928,1732703450974,-571.41168668,0.00030461,3]
[343512929,1732703450984,-500.0,0.00030461,3]
[343512930,1732703450993,-500.0,0.00030461,3]
[343512931,1732703451003,-500.0,0.00030461,3]
[343512932,1732703451012,-248.76,0.00030461,3]
[343512933,1732703451022,-500.0,0.00030461,3]
[343512934,1732703451032,-500.0,0.00030461,3]
[343512935,1732703451041,-777.12,0.00030461,3]
[343512936,1732703451050,-777.12,0.00030461,3]
[343512937,1732703451060,-768.66,0.00030461,3]
[343512938,1732703451069,-768.66,0.00030461,3]
[343512939,1732703451079,-500.0,0.00030461,3]
[343512940,1732703451088,-500.0,0.00030461,3]
[343512941,1732703451097,-500.0,0.00030461,3]
[343512942,1732703451106,-622.45,0.00030461,3]
[343512943,1732703451116,-616.84203697,0.00030461,3]
[343512944,1732703451126,-647.65,0.00030461,3]
[343512945,1732703451135,-647.65,0.00030461,3]
[343512946,1732703451285,-1330.18,0.00030461,3]
[343512947,1732703451300,-1330.18,0.00030461,3]
[343512948,1732703451311,-500.0,0.00030461,3]
[343512949,1732703451321,-500.0,0.00030461,3]
[343512950,1732703451330,-500.0,0.00030461,3]
[343512951,1732703451339,-500.0,0.00030461,3]
[343512952,1732703451348,-500.0,0.00030461,3]
[343512953,1732703451357,-500.0,0.00030461,3]
[343512954,1732703451367,-1154.32,0.00030461,3]
[343512955,1732703451376,-1154.32,0.00030461,3]
[343512956,1732703451390,-537.15,0.00030461,3]
[343512957,1732703451399,-537.15,0.00030461,3]
[343512958,1732703451409,-742.14,0.00030461,3]
[343512959,1732703451419,-742.14,0.00030461,3]
[343512960,1732703451429,-500.0,0.00030461,3]
[343512961,1732703451439,-252.24,0.00030461,3]
[343512962,1732703451448,-500.0,0.00030461,3]
[343512963,1732703451458,-500.0,0.00030461,3]
[343512964,1732703451467,-500.0,0.00030461,3]
[343512965,1732703451477,-497.4732272,0.00030461,3]
[343512966,1732703451486,-498.58193212,0.00030462,3]
[343512967,1732703451495,-500.0,0.00030462,3]